bitfinex/quotes_BTCUSD_20250110
["timestamp","ask_amount","ask_price","bid_price","bid_amount"]
[1736470849262,0.25429976,92955.0,92940.0,0.1282]
[1736470849474,0.04183832,92959.0,92949.0,0.215171]
[1736470849806,0.0793,92972.0,92953.0,0.215161]
[1736470850041,0.0793,92972.0,92953.0,0.01551091]
[1736470850042,0.10429976,92971.0,92953.0,0.01551091]
[1736470850253,0.31941976,92971.0,92960.0,0.215144]
[1736470850458,0.10429976,92971.0,92960.0,0.215144]
[1736470851489,0.04363841,92972.0,92964.0,0.215134]
[1736470852158,0.04363841,92972.0,92957.0,0.08]
[1736470852364,0.04363841,92972.0,92961.0,0.0491]
[1736470852756,0.04363841,92972.0,92961.0,0.06201]
[1736470853141,0.04363841,92972.0,92962.0,0.215141]
[1736470854451,0.04363841,92972.0,92962.0,0.430282]
[1736470854665,0.04363841,92972.0,92962.0,0.215141]
[1736470854863,0.04363841,92972.0,92962.0,0.430282]
[1736470855063,0.04363841,92972.0,92962.0,0.42128198]
[1736470855644,0.04363841,92972.0,92962.0,0.20614098]
[1736470856044,0.04363841,92972.0,92962.0,0.42128198]
[1736470856895,0.04363841,92972.0,92958.0,0.21515]
[1736470857149,0.04363841,92972.0,92958.0,0.4303]
[1736470858885,0.04363841,92972.0,92963.0,0.215137]
[1736470859088,0.01812996,92977.0,92963.0,0.215137]
[1736470859336,0.10429976,92976.0,92963.0,0.430274]
[1736470859700,0.10429976,92976.0,92963.0,0.4733014]
[1736470860104,0.10429976,92976.0,92963.0,0.46430138]
[1736470860723,0.10429976,92976.0,92963.0,0.20613698]
[1736470860724,0.215111,92975.0,92963.0,0.20613698]
[1736470860936,0.10429976,92974.0,92963.0,0.20613698]
[1736470861374,0.215116,92973.0,92959.0,0.215146]
[1736470861575,0.28158121,92980.0,92952.0,0.260562]
[1736470861576,0.0751,92969.0,92952.0,0.00049145]
[1736470861758,0.46942676,92968.0,92952.0,0.00049145]
[1736470861964,0.46942676,92968.0,92953.0,0.430324]
[1736470862461,0.46942676,92968.0,92953.0,0.4639116]
[1736470862668,0.46942676,92968.0,92953.0,0.215162]
[1736470862669,0.16811178,92967.0,92953.0,0.215162]
[1736470862875,0.10429976,92966.0,92953.0,0.215162]
[1736470863290,0.10429976,92966.0,92953.0,0.430324]
[1736470863772,0.10429976,92966.0,92957.0,0.215151]
[1736470865092,0.10429976,92966.0,92957.0,0.20615098]
[1736470865740,0.14627997,92966.0,92953.0,0.215162]
[1736470865916,0.14627997,92966.0,92954.0,0.04308195]
[1736470866117,0.14627997,92966.0,92953.0,0.215162]
[1736470866567,0.215139,92963.0,92952.0,0.00049145]
[1736470866770,0.215143,92961.0,92952.0,0.00049145]
[1736470866942,0.15,92961.0,92952.0,0.00049145]
[1736470867982,0.15,92961.0,92953.0,0.215162]
[1736470868195,0.04198021,92966.0,92957.0,0.215151]
[1736470868366,0.10429976,92966.0,92957.0,0.215151]
[1736470869838,0.25817482,92974.0,92962.0,0.21514]
[1736470870108,0.15,92972.0,92956.0,0.0806]
[1736470870229,0.04305882,92974.0,92966.0,0.215131]
[1736470870424,0.215096,92982.0,92966.0,0.215131]
[1736470870628,0.15,92978.0,92966.0,0.215131]
[1736470873092,0.10429976,92980.0,92966.0,0.215131]
[1736470873300,0.10429976,92980.0,92958.0,0.21515]
[1736470873498,0.04188013,92981.0,92979.0,0.215101]
[1736470875133,0.04188013,92981.0,92979.0,0.20610098]
[1736470876584,8.52e-05,92981.0,92979.0,0.20610098]
[1736470878658,8.52e-05,92981.0,92979.0,0.215102]
[1736470878864,8.52e-05,92981.0,92977.0,0.215104]
[1736470879071,8.52e-05,92981.0,92973.0,0.215116]
[1736470879248,0.04329654,92981.0,92972.0,0.259747]
[1736470879581,8.52e-05,92981.0,92972.0,0.259747]
[1736470879802,0.2151,92980.0,92972.0,0.259747]
[1736470880005,0.2151,92980.0,92972.0,0.25074698]
[1736470880209,0.215116,92974.0,92972.0,0.25074698]
[1736470880416,0.215125,92970.0,92956.0,0.0474]
[1736470880618,0.215125,92970.0,92957.0,0.215153]
[1736470880818,0.43025,92970.0,92952.0,0.21565445]
[1736470881023,0.215127,92968.0,92952.0,0.00049145]
[1736470881279,0.215139,92963.0,92952.0,0.00049145]
[1736470881440,0.10429976,92967.0,92952.0,0.00049145]
[1736470881641,0.15,92963.0,92952.0,0.00049145]
[1736470881874,0.215157,92956.0,92952.0,0.00049145]
[1736470882881,0.294156,92956.0,92952.0,0.00049145]
[1736470883504,0.215157,92955.0,92952.0,0.00049145]
[1736470884964,0.215157,92955.0,92939.0,0.20668543]
[1736470885171,0.21564776,92955.0,92939.0,0.20668543]
[1736470885938,0.15,92948.0,92934.0,8.51e-05]
[1736470886154,0.215188,92942.0,92934.0,8.51e-05]
[1736470886370,0.215181,92945.0,92934.0,8.51e-05]
[1736470886576,0.215164,92952.0,92934.0,0.2152911]
[1736470886781,0.10429976,92954.0,92939.0,0.215194]
[1736470887489,0.15,92953.0,92939.0,0.215194]
[1736470887886,0.00049076,92955.0,92936.0,0.0768]
[1736470888089,0.00049076,92955.0,92942.0,0.215186]
[1736470888315,0.21516,92954.0,92942.0,0.215186]
[1736470888544,0.215162,92953.0,92937.0,0.215199]
[1736470889310,0.215162,92953.0,92942.0,0.215187]
[1736470889946,0.215162,92953.0,92937.0,0.20619898]
[1736470890152,0.215169,92950.0,92935.0,0.215204]
[1736470890378,0.215174,92948.0,92935.0,0.215204]
[1736470891163,0.215179,92946.0,92934.0,8.51e-05]
[1736470892146,0.15,92949.0,92934.0,0.2152901]
[1736470892398,0.25429976,92949.0,92934.0,0.2152901]
[1736470892635,0.15,92947.0,92934.0,0.2152901]
[1736470892838,0.215178,92946.0,92934.0,8.51e-05]
[1736470894483,0.15,92947.0,92935.0,0.215204]
[1736470895121,0.15,92947.0,92935.0,0.20620398]
[1736470896922,0.430357,92946.0,92934.0,8.51e-05]
[1736470897130,0.215183,92944.0,92934.0,8.51e-05]
[1736470897661,0.15,92945.0,92934.0,8.51e-05]
[1736470898184,0.215183,92944.0,92934.0,8.51e-05]
[1736470899287,0.15,92945.0,92934.0,8.51e-05]
[1736470899497,0.15,92945.0,92934.0,0.2152901]
[1736470899705,0.215178,92946.0,92934.0,0.2152901]
[1736470899904,0.25847393,92946.0,92934.0,0.20629008]
[1736470900109,0.04329593,92946.0,92939.0,0.215193]
[1736470900341,0.15,92953.0,92936.0,0.0805]
[1736470900535,0.00049076,92955.0,92937.0,0.00107588]
[1736470900898,0.00049076,92955.0,92952.0,0.215162]
[1736470901090,0.00049076,92955.0,92953.0,0.0805]
[1736470901495,0.04484632,92955.0,92953.0,0.0805]
[1736470901698,0.00049076,92955.0,92953.0,0.0805]
[1736470901873,0.00049076,92955.0,92954.0,0.21516]
[1736470902299,0.00049076,92955.0,92953.0,0.0805]
[1736470904358,0.04344078,92955.0,92953.0,0.0805]
[1736470904935,0.04344078,92955.0,92953.0,0.07149998]
[1736470905150,0.04344078,92955.0,92953.0,0.28666098]
[1736470906638,0.00049076,92955.0,92953.0,0.28666098]
[1736470906801,0.00049076,92955.0,92954.0,0.0482]
[1736470908580,0.00049076,92955.0,92945.0,0.0482]
[1736470909180,0.00049076,92955.0,92945.0,0.263379]
[1736470909381,0.00049076,92955.0,92945.0,0.478558]
[1736470910069,0.00049076,92955.0,92945.0,0.25437898]
[1736470910899,0.21564976,92955.0,92941.0,0.215188]
[1736470911113,0.215168,92951.0,92939.0,0.33324698]
[1736470911324,0.0812,92952.0,92935.0,0.215202]
[1736470911549,0.215185,92943.0,92931.0,0.297911]
[1736470911732,0.215175,92948.0,92932.0,0.215211]
[1736470912033,0.15,92953.0,92931.0,0.0827]
[1736470912260,0.215154,92957.0,92944.0,0.215181]
[1736470912443,0.215154,92957.0,92933.0,0.00107598]
[1736470912444,0.25936755,92962.0,92950.0,0.215168]
[1736470912678,0.04422655,92962.0,92950.0,0.430337]
[1736470913008,0.04422655,92962.0,92952.0,0.478028]
[1736470913208,0.0437987,92963.0,92952.0,0.478028]
[1736470914842,0.0437987,92963.0,92954.0,0.29156]
[1736470915058,0.0764852,92981.0,92954.0,0.38685974]
[1736470915233,0.215103,92979.0,92954.0,0.38685974]
[1736470915793,8.52e-05,92981.0,92954.0,0.38685974]
[1736470916000,8.52e-05,92981.0,92954.0,0.78460672]
[1736470916184,8.52e-05,92981.0,92954.0,0.93460672]
[1736470916403,8.52e-05,92981.0,92954.0,1.03460672]
[1736470916609,8.52e-05,92981.0,92954.0,1.13890648]
[1736470919237,0.003,92976.0,92954.0,1.13890648]
[1736470919413,8.52e-05,92981.0,92954.0,1.68080648]
[1736470919971,8.52e-05,92981.0,92954.0,1.68980648]
[1736470920173,8.52e-05,92981.0,92954.0,1.58550672]
[1736470922064,8.52e-05,92981.0,92954.0,1.57650672]
[1736470922473,8.52e-05,92981.0,92954.0,1.58550672]
[1736470922673,0.15,92999.0,92959.0,0.0808]
[1736470922895,0.215058,92998.0,92982.0,0.215093]
[1736470923050,0.15,92997.0,92982.0,0.215093]
[1736470923457,0.15,92997.0,92981.0,0.0808]
[1736470923673,0.05637584,93000.0,92993.0,0.215068]
[1736470923885,0.01261856,93000.0,92997.0,0.215058]
[1736470924091,0.01276579,93000.0,92997.0,0.215058]
[1736470924753,0.01276579,93000.0,92993.0,0.215068]
[1736470924897,0.01276579,93000.0,92993.0,0.20606798]
[1736470925108,0.003,92998.0,92993.0,0.20606798]
[1736470925315,0.01276579,93000.0,92993.0,0.20606798]
[1736470926077,0.01276579,93000.0,92990.0,0.215075]
[1736470926301,0.01576579,93000.0,92997.0,0.001]
[1736470926509,0.01276579,93000.0,92985.0,0.215086]
[1736470926714,0.22782079,93000.0,92989.0,0.215076]
[1736470926920,0.23082079,93000.0,92993.0,0.001]
[1736470927275,0.01576579,93000.0,92993.0,0.001]
[1736470928346,0.15,93006.0,92993.0,0.03050311]
[1736470928662,0.15,93004.0,92993.0,0.001]
[1736470928802,0.215049,93002.0,92993.0,0.001]
[1736470929012,0.215049,93002.0,92989.0,0.215076]
[1736470929215,0.003,93000.0,92997.0,0.001]
[1736470929637,0.215049,93002.0,92989.0,0.21522323]
[1736470929835,0.215049,93002.0,92993.0,0.001]
[1736470930039,0.215049,93002.0,92989.0,0.25025383]
[1736470930400,0.19437665,93008.0,92994.0,0.215065]
[1736470930603,0.003,93000.0,92997.0,0.001]
[1736470932048,0.215044,93004.0,92992.0,0.215071]
[1736470932898,0.15,93008.0,92992.0,0.215071]
[1736470933113,0.215037,93007.0,92992.0,0.25792551]
[1736470933351,0.215037,93007.0,92992.0,0.215071]
[1736470933569,0.15,93002.0,92997.0,0.001]
[1736470933781,0.199,92998.0,92997.0,0.001]
[1736470933993,0.215076,92990.0,92989.0,0.00014723]
[1736470934167,0.31937576,92990.0,92989.0,0.00014723]
[1736470934397,0.10429976,92990.0,92989.0,0.00014723]
[1736470935213,0.215079,92989.0,92972.0,0.20626421]
[1736470935417,0.430159,92989.0,92972.0,0.20626421]
[1736470935695,0.430159,92989.0,92976.0,0.215107]
[1736470935696,0.215079,92989.0,92976.0,0.215107]
[1736470935928,0.04484002,92990.0,92980.0,0.215098]
[1736470936141,0.215057,92999.0,92986.0,0.215083]
[1736470936362,0.002,92989.0,92973.0,0.0817]
[1736470936585,0.002,92989.0,92988.0,0.296781]
[1736470936786,0.00014715,93003.0,92988.0,0.296781]
[1736470936787,0.215049,93002.0,92988.0,0.296781]
[1736470936989,0.002,92989.0,92988.0,0.296781]
[1736470937192,0.002,92989.0,92988.0,0.35688203]
[1736470938033,0.002,92989.0,92988.0,0.46118179]
[1736470938432,0.00014715,93003.0,93002.0,0.215049]
[1736470939724,0.15,93023.0,92989.0,0.25074698]
[1736470939905,0.00012139,93019.0,92990.0,0.18219975]
[1736470940053,0.00012139,93019.0,92990.0,0.17319973]
[1736470940656,0.21513239,93019.0,93007.0,0.215037]
[1736470940881,0.21513239,93019.0,93001.0,0.21505]
[1736470941084,0.365012,93018.0,93001.0,0.21505]
[1736470941713,0.365012,93018.0,93001.0,0.4301]
[1736470941918,0.365012,93018.0,93005.0,0.21504]
[1736470942110,0.00012139,93019.0,93005.0,0.21504]
[1736470942505,0.00012139,93019.0,93016.0,0.430031]
[1736470942707,0.00012139,93019.0,93017.0,0.0010749]
[1736470942931,0.00012139,93019.0,93018.0,0.215012]
[1736470943673,0.00112139,93019.0,93018.0,0.215012]
[1736470943828,0.00012139,93019.0,93018.0,0.215012]
[1736470944936,0.00012139,93019.0,93018.0,0.2795171]
[1736470945145,0.00012139,93019.0,93018.0,0.20601198]
[1736470945803,0.00112139,93019.0,93018.0,0.20601198]
[1736470947871,0.00112139,93019.0,93013.0,0.25074698]
[1736470948756,0.31931176,93018.0,93013.0,0.25074698]
[1736470948962,0.215014,93017.0,92999.0,0.215056]
[1736470949146,0.10429976,93018.0,92998.0,0.0802]
[1736470949352,0.00012139,93019.0,93006.0,0.215037]
[1736470949558,0.21613139,93019.0,93006.0,0.215037]
[1736470949778,0.00012139,93019.0,93010.0,0.215028]
[1736470949987,0.00012139,93019.0,93014.0,0.20601898]
[1736470950194,0.001,93018.0,93016.0,0.215016]
[1736470950463,0.00012139,93019.0,93016.0,0.215016]
[1736470950697,0.00112139,93019.0,93016.0,0.215016]
[1736470950953,0.00012139,93019.0,93016.0,0.215016]
[1736470951760,0.00012139,93019.0,93016.0,0.430032]
[1736470952480,0.00112139,93019.0,93016.0,0.430032]
[1736470952885,0.00012139,93019.0,93016.0,0.430032]
[1736470953089,0.00112139,93019.0,93016.0,0.430032]
[1736470954272,0.00112139,93019.0,93018.0,0.215012]
[1736470955034,0.00112139,93019.0,93018.0,0.20601198]
[1736470955812,0.00112139,93019.0,93016.0,0.215016]
[1736470955813,0.00012139,93019.0,93016.0,0.215016]
[1736470956011,0.00581442,93018.0,93011.0,0.215027]
[1736470957224,0.00581442,93018.0,93007.0,0.079]
[1736470957432,0.22182742,93018.0,93002.0,0.215047]
[1736470957626,0.15,93017.0,93002.0,0.215047]
[1736470958469,0.15,93015.0,93002.0,0.215047]
[1736470959092,0.15,93015.0,92993.0,0.215069]
[1736470959093,0.15,93008.0,92993.0,0.215069]
[1736470959326,0.15,93006.0,92993.0,0.215069]
[1736470960058,0.25429976,93006.0,92988.0,0.215079]
[1736470960263,0.15,93003.0,92982.0,0.0763]
[1736470960464,0.15,93001.0,92988.0,0.215079]
[1736470961275,0.15,93005.0,92982.0,0.0763]
[1736470961474,0.215069,92994.0,92982.0,0.0763]
[1736470961673,0.215069,92994.0,92983.0,0.215093]
[1736470961885,0.21508,92989.0,92977.0,0.25074698]
[1736470962277,0.15,92988.0,92974.0,0.0768]
[1736470962688,0.215093,92983.0,92974.0,0.0768]
[1736470963110,0.15,92986.0,92974.0,0.0768]
[1736470963318,0.00012656,92983.0,92974.0,0.0768]
[1736470963969,0.00012656,92983.0,92976.0,0.0031704]
[1736470964428,0.00012656,92983.0,92982.0,0.215095]
[1736470964847,0.00012656,92983.0,92976.0,0.2182774]
[1736470965052,0.00012656,92983.0,92976.0,0.20927738]
[1736470965508,0.00012656,92983.0,92976.0,0.21027738]
[1736470966379,0.00012656,92983.0,92976.0,0.21127738]
[1736470966750,0.00012656,92983.0,92976.0,0.001]
[1736470966955,0.00012656,92983.0,92976.0,0.002]
[1736470967159,0.15,92979.0,92976.0,0.002]
[1736470967362,0.00811241,92983.0,92977.0,0.18179976]
[1736470967612,0.00012656,92983.0,92979.0,0.0775]
[1736470967818,0.00012656,92983.0,92981.0,0.292597]
[1736470968019,0.00012656,92983.0,92982.0,0.18287491]
[1736470968620,0.00512656,92983.0,92982.0,0.18287491]
[1736470968979,5.6e-07,92983.0,92982.0,1.07477491]
[1736470969183,5.6e-07,92983.0,92982.0,1.07669976]
[1736470969383,5.6e-07,92983.0,92982.0,1.18099952]
[1736470969595,7e-05,93020.0,92986.0,0.1]
[1736470969798,7e-05,93020.0,92987.0,0.18507479]
[1736470970010,7e-05,93020.0,92987.0,0.17607477]
[1736470970225,7e-05,93020.0,93012.0,0.215024]
[1736470970432,7e-05,93020.0,93002.0,0.00788]
[1736470970657,7e-05,93020.0,93003.0,0.00107503]
[1736470971668,7e-05,93020.0,93011.0,0.215028]
[1736470972132,7e-05,93020.0,93012.0,0.0215028]
[1736470972312,0.00507,93020.0,93003.0,0.00107503]
[1736470972508,7e-05,93020.0,93012.0,0.215026]
[1736470972941,0.00607,93020.0,93012.0,0.215026]
[1736470973115,7e-05,93020.0,93012.0,0.215026]
[1736470973492,0.00507,93020.0,93012.0,0.215026]
[1736470973703,7e-05,93020.0,93012.0,0.215026]
[1736470974990,7e-05,93020.0,93012.0,0.20602598]
[1736470975347,7e-05,93020.0,93010.0,0.215029]
[1736470975748,0.00607,93020.0,93010.0,0.215029]
[1736470975943,7e-05,93020.0,93010.0,0.215029]
[1736470976372,0.00507,93020.0,93010.0,0.215029]
[1736470976598,7e-05,93020.0,93010.0,0.215029]
[1736470976833,0.215009,93019.0,93003.0,0.25074698]
[1736470977036,0.215009,93019.0,93004.0,0.215044]
[1736470978292,0.215009,93019.0,93004.0,0.430088]
[1736470978476,0.04907256,93020.0,93009.0,0.215031]
[1736470978883,0.04407256,93020.0,93009.0,0.215031]
[1736470979087,0.005,93019.0,93009.0,0.215031]
[1736470979522,0.04407256,93020.0,93009.0,0.215031]
[1736470980199,0.04907256,93020.0,93009.0,0.27411298]
[1736470980399,0.04407256,93020.0,93009.0,0.27411298]
[1736470981226,0.05007256,93020.0,93009.0,0.20603098]
[1736470982689,0.215021,93014.0,93003.0,0.25074698]
[1736470983113,0.215037,93008.0,93003.0,0.25074698]
[1736470984119,0.430074,93008.0,93003.0,0.25074698]
[1736470984754,0.215039,93006.0,93003.0,0.25074698]
[1736470984961,0.00013931,93030.0,93003.0,0.24174696]
[1736470985164,7e-05,93020.0,93017.0,0.215014]
[1736470985372,7e-05,93020.0,93019.0,0.294109]
[1736470987030,7e-05,93020.0,93019.0,0.299109]
[1736470990075,7e-05,93020.0,93019.0,0.29010898]
[1736470995424,7e-05,93020.0,93019.0,0.28110896]
[1736470998111,7e-05,93020.0,93019.0,0.38540872]
[1736470998293,7e-05,93020.0,93019.0,0.67625568]
[1736470998529,7e-05,93020.0,93019.0,0.78055544]
[1736470999365,7e-05,93020.0,93019.0,0.77555544]
[1736470999580,7e-05,93020.0,93019.0,1.41745544]
[1736470999782,7e-05,93020.0,93019.0,1.31815568]
[1736470999989,7e-05,93020.0,93019.0,1.36247381]
[1736471000175,7e-05,93020.0,93019.0,1.35747381]
[1736471000579,7e-05,93020.0,93019.0,1.36347381]
[1736471000978,7e-05,93020.0,93019.0,1.38261428]
[1736471001213,7e-05,93020.0,93019.0,1.28261428]
[1736471001594,7e-05,93020.0,93019.0,1.26347381]
[1736471002026,7e-05,93020.0,93019.0,1.36347381]
[1736471002225,7e-05,93020.0,93019.0,1.35747381]
[1736471002583,7e-05,93020.0,93019.0,1.36347381]
[1736471002784,7e-05,93020.0,93019.0,1.35747381]
[1736471003015,7e-05,93020.0,93019.0,1.43207838]
[1736471003178,7e-05,93020.0,93019.0,1.26347381]
[1736471003379,7e-05,93020.0,93019.0,1.21315568]
[1736471003662,7e-05,93020.0,93019.0,1.22091568]
[1736471003868,7e-05,93020.0,93019.0,1.22691568]
[1736471004078,7e-05,93020.0,93019.0,1.22091568]
[1736471004300,7e-05,93020.0,93019.0,1.32822483]
[1736471004512,7e-05,93020.0,93019.0,1.42822483]
[1736471004687,7e-05,93020.0,93019.0,1.57822483]
[1736471005359,7e-05,93020.0,93019.0,1.47091568]
[1736471005791,7e-05,93020.0,93019.0,1.47691568]
[1736471005991,7e-05,93020.0,93019.0,1.47091568]
[1736471006499,0.00107,93020.0,93019.0,1.47791568]
[1736471008849,7e-05,93020.0,93019.0,1.47091568]
[1736471009052,7e-05,93020.0,93019.0,1.47991568]
[1736471009353,0.00013931,93030.0,93024.0,0.1]
[1736471009642,0.00013931,93030.0,93029.0,0.342486]
[1736471009816,0.00013931,93030.0,93029.0,0.44678576]
[1736471010018,0.00013931,93030.0,93029.0,0.43778574]
[1736471010783,0.00013931,93030.0,93029.0,0.44578574]
[1736471012537,0.00013931,93030.0,93029.0,0.45354574]
[1736471014696,0.00013931,93030.0,93029.0,0.44578574]
[1736471014894,0.00013931,93030.0,93029.0,0.40794574]
[1736471015095,0.00013931,93030.0,93029.0,0.39894572]
[1736471015322,0.00013931,93030.0,93029.0,0.64069268]
[1736471015896,0.00013931,93030.0,93029.0,0.63293268]
[1736471016061,0.00013931,93030.0,93029.0,0.64069268]
[1736471018801,0.00013931,93030.0,93029.0,0.63269268]
[1736471019215,0.00013931,93030.0,93029.0,0.64169268]
[1736471019398,0.00013931,93030.0,93029.0,0.63269268]
[1736471019628,0.00013931,93030.0,93029.0,0.62493268]
[1736471019989,0.00013931,93030.0,93029.0,0.55079266]
[1736471020224,0.00013931,93030.0,93029.0,0.4297329]
[1736471020407,0.00013931,93030.0,93029.0,0.4387329]
[1736471020790,0.00013931,93030.0,93029.0,0.4297329]
[1736471021180,0.00013931,93030.0,93029.0,0.18798594]
[1736471021385,0.00013931,93030.0,93022.0,0.0801]
[1736471021386,0.00013931,93030.0,93020.0,0.24174696]
[1736471021585,0.21512531,93030.0,93020.0,0.24174696]
[1736471021750,0.0718,93028.0,93020.0,0.24174696]
[1736471022151,0.0718,93028.0,93016.0,0.215014]
[1736471022354,0.0718,93028.0,93012.0,0.215024]
[1736471022355,0.214991,93027.0,93012.0,0.215024]
[1736471022939,0.214991,93027.0,93012.0,0.430049]
[1736471024101,0.217991,93027.0,93012.0,0.430049]
[1736471024303,0.432983,93027.0,93012.0,0.215024]
[1736471024502,0.1968,93024.0,93008.0,0.24174696]
[1736471025051,0.1968,93024.0,93008.0,0.23274694]
[1736471025668,0.215,93023.0,93009.0,0.215032]
[1736471026847,0.217,93023.0,93009.0,0.215032]
[1736471028145,0.13108073,93024.0,93009.0,0.215032]
[1736471028742,0.0468,93024.0,93009.0,0.215032]
[1736471029570,0.0488,93024.0,93009.0,0.215032]
[1736471029989,0.0488,93024.0,93009.0,0.20603198]
[1736471030390,0.215,93023.0,93009.0,0.20603198]
[1736471030639,0.0488,93024.0,93009.0,0.20603198]
[1736471031265,0.215,93023.0,93009.0,0.20603198]
[1736471032362,0.0468,93024.0,93009.0,0.20603198]
[1736471032743,0.215,93023.0,93009.0,0.20603198]
[1736471033490,0.0468,93024.0,93009.0,0.20603198]
[1736471034535,0.10429976,93026.0,93010.0,0.0206032]
[1736471034743,0.1212,93034.0,93018.0,0.215011]
[1736471035082,0.03164679,93030.0,93019.0,0.215009]
[1736471035625,0.03164679,93030.0,93019.0,0.430018]
[1736471036648,0.03164679,93030.0,93019.0,0.215009]
[1736471037313,0.03164679,93030.0,93023.0,0.214999]
[1736471039375,0.03164679,93030.0,93028.0,0.214988]
[1736471040041,0.03164679,93030.0,93028.0,0.20598798]
[1736471040392,0.03164679,93030.0,93024.0,0.214996]
[1736471042068,0.03164679,93030.0,93018.0,0.430024]
[1736471043175,0.03164679,93030.0,93018.0,0.215012]
[1736471043771,0.03164679,93030.0,93023.0,0.215]
[1736471044856,0.03164679,93030.0,93010.0,0.0766]
[1736471045073,0.03164679,93030.0,93028.0,0.20598698]
[1736471048234,0.03151974,93030.0,93028.0,0.20598698]
[1736471050103,0.03151974,93030.0,93028.0,0.19698696]
[1736471052704,0.00014944,93030.0,93028.0,0.19698696]
[1736471052908,0.00014944,93030.0,93029.0,0.08047491]
[1736471053047,0.00014944,93030.0,93029.0,0.0794]
[1736471054881,0.00014944,93030.0,93029.0,0.07039998]
[1736471056624,0.00014944,93030.0,93029.0,0.07139998]
[1736471059996,0.00014944,93030.0,93029.0,0.06239996]
[1736471060545,0.214932,93053.0,93029.0,0.06239996]
[1736471060685,0.10429976,93051.0,93029.0,0.06239996]
[1736471060906,0.10429976,93051.0,93029.0,0.09315865]
[1736471061132,0.214942,93049.0,93031.0,0.214982]
[1736471061335,0.31924176,93049.0,93029.0,0.06239996]
[1736471061712,0.0829,93043.0,93029.0,0.001]
[1736471061915,0.023,93033.0,93029.0,0.001]
[1736471062119,0.214984,93030.0,93029.0,0.001]
[1736471062321,0.31928376,93030.0,93017.0,0.215014]
[1736471062526,0.023,93028.0,93011.0,0.00013718]
[1736471062728,0.10429976,93027.0,93011.0,0.00013718]
[1736471063132,0.214993,93026.0,93012.0,0.215026]
[1736471063347,0.31929276,93026.0,93012.0,0.215026]
[1736471064126,0.31929276,93026.0,93011.0,0.00013718]
[1736471064337,0.31929276,93026.0,93012.0,0.215026]
[1736471064955,0.215004,93022.0,93009.0,0.20616916]
[1736471066102,0.15409976,93021.0,93002.0,0.0806]
[1736471066317,0.15409976,93021.0,93004.0,0.215044]
[1736471066518,0.15409976,93021.0,93011.0,0.215028]
[1736471067334,0.10429976,93021.0,93011.0,0.215028]
[1736471067548,0.03238756,93028.0,93011.0,0.01528516]
[1736471067741,0.03238756,93028.0,93018.0,0.21501]
[1736471067959,0.15,93030.0,93018.0,0.29561]
[1736471068164,0.25429976,93030.0,93018.0,0.510621]
[1736471068364,0.25429976,93030.0,93018.0,0.29561]
[1736471068589,0.28240645,93030.0,93018.0,0.29561]
[1736471070047,0.28240645,93030.0,93018.0,0.28660998]
[1736471070487,0.02749274,93030.0,93018.0,0.28660998]
[1736471070697,0.214982,93031.0,93018.0,0.28660998]
[1736471070835,0.2151291,93031.0,93018.0,0.28660998]
[1736471071042,0.2151291,93031.0,93022.0,0.215001]
[1736471071043,0.0001471,93031.0,93022.0,0.215001]
[1736471071307,0.0001471,93031.0,93018.0,0.0806]
[1736471071503,0.0001471,93031.0,93018.0,0.08167493]
[1736471071707,0.214963,93039.0,93026.0,0.214991]
[1736471071923,0.10403585,93045.0,93026.0,0.214991]
[1736471072122,0.20833561,93045.0,93026.0,0.214991]
[1736471072760,0.214963,93039.0,93026.0,0.214991]
[1736471073727,0.214963,93039.0,93026.0,0.215991]
[1736471073931,0.214963,93039.0,93026.0,0.214991]
[1736471074334,0.214963,93039.0,93026.0,0.215991]
[1736471075047,0.214963,93039.0,93026.0,0.20699098]
[1736471076796,0.02383585,93045.0,93032.0,0.0807]
[1736471077003,0.214952,93044.0,93032.0,0.0807]
[1736471077205,0.214942,93049.0,93033.0,0.214977]
[1736471077612,0.23869289,93049.0,93033.0,0.214977]
[1736471078227,0.02375089,93049.0,93033.0,0.214977]
[1736471078403,0.214945,93047.0,93033.0,0.214977]
[1736471079740,0.214945,93047.0,93033.0,0.215977]
[1736471079987,0.214945,93047.0,93033.0,0.20597698]
[1736471080396,0.214945,93047.0,93033.0,0.20697698]
[1736471080630,0.0241238,93050.0,93033.0,0.20697698]
[1736471080807,0.21494,93049.0,93033.0,0.25724268]
[1736471081236,0.21494,93049.0,93035.0,0.214972]
[1736471081993,0.21494,93049.0,93034.0,0.0481]
[1736471082218,0.214945,93047.0,93034.0,0.0481]
[1736471083637,0.02424276,93051.0,93040.0,0.21496]
[1736471083873,0.02424276,93051.0,93041.0,0.081]
[1736471084477,0.02424276,93051.0,93042.0,0.214956]
[1736471084665,0.02424276,93051.0,93041.0,0.081]
[1736471084866,0.02424276,93051.0,93042.0,0.214956]
[1736471085084,0.02424276,93051.0,93042.0,0.20595598]
[1736471086211,0.02424276,93051.0,93042.0,0.25614838]
[1736471087645,0.02424276,93051.0,93042.0,0.20595598]
[1736471088454,0.02424276,93051.0,93048.0,0.214942]
[1736471088630,8.51e-05,93057.0,93048.0,0.214942]
[1736471088833,0.0005756,93057.0,93048.0,0.214942]
[1736471090130,0.0005756,93057.0,93048.0,0.20594198]
[1736471090494,0.02527733,93057.0,93048.0,0.20594198]
[1736471090725,0.0005756,93057.0,93048.0,0.20594198]
[1736471090926,0.0005756,93057.0,93043.0,0.214954]
[1736471091707,0.214924,93056.0,93043.0,0.214954]
[1736471091912,0.0005756,93057.0,93043.0,0.214954]
[1736471092230,0.02441082,93057.0,93043.0,0.214954]
[1736471094155,0.214924,93056.0,93043.0,0.214954]
[1736471094744,0.02441082,93057.0,93043.0,0.214954]
[1736471094889,0.02441082,93057.0,93043.0,0.20595398]
[1736471095096,0.02441082,93057.0,93043.0,0.42090798]
[1736471097020,0.02441082,93057.0,93043.0,0.20595398]
[1736471097198,0.02441082,93057.0,93044.0,0.214952]
[1736471098815,0.214924,93056.0,93044.0,0.214952]
[1736471099756,0.02441082,93057.0,93044.0,0.214952]
[1736471099960,0.02441082,93057.0,93044.0,0.20595198]
[1736471100788,0.214924,93056.0,93044.0,0.20595198]
[1736471101113,0.02441082,93057.0,93041.0,0.081]
[1736471101333,0.00029202,93055.0,93041.0,0.081]
[1736471101570,0.214956,93043.0,93033.0,0.0826]